bitfinex/quotes_SOLUSD_20250724
["timestamp","ask_amount","ask_price","bid_price","bid_amount"]
[1753345364823,0.03,185.02,185.01,32.15848427]
[1753345365005,0.03,185.02,185.01,32.83848427]
[1753345365397,0.03,185.05,185.04,26.0]
[1753345365593,0.03,185.05,185.04,33.68690015]
[1753345365801,0.03,185.05,185.04,34.36690015]
[1753345366608,0.03,185.05,185.04,26.68]
[1753345366911,0.03,185.05,185.03,26.0]
[1753345367103,0.03,185.05,185.04,7.68690015]
[1753345367501,0.03,185.05,185.03,26.68]
[1753345367704,0.03,185.05,185.04,7.68690015]
[1753345369697,0.03,185.05,185.04,8.36690015]
[1753345370098,0.03,185.05,185.04,13.77113707]
[1753345370516,0.03,185.05,185.04,8.36690015]
[1753345371413,0.03,185.05,185.04,7.68690015]
[1753345371813,0.03,185.05,185.02,114.2]
[1753345372219,0.03,185.05,185.01,7.68690015]
[1753345372522,0.71,185.04,184.96,0.68]
[1753345372726,2.2576,185.04,184.98,7.68690015]
[1753345373021,0.71,185.03,185.0,7.68690015]
[1753345373704,1.5476,185.04,185.02,7.68690015]
[1753345373905,46.0607,185.05,185.02,7.68690015]
[1753345374107,51.46473066,185.05,185.03,7.68690015]
[1753345374619,0.71,185.04,184.98,26.0]
[1753345374929,0.71,185.04,185.02,7.68690015]
[1753345376033,6.11450387,185.04,185.02,7.68690015]
[1753345377515,5.40450387,185.04,185.02,7.68690015]
[1753345377721,11.56472161,185.05,185.03,7.68690015]
[1753345378117,6.1607,185.05,185.04,7.68690015]
[1753345378430,0.03,185.05,185.04,7.68690015]
[1753345378637,0.03,185.05,185.03,0.68]
[1753345378805,0.03,185.05,185.04,7.68690015]
[1753345379624,0.03,185.05,185.04,8.36690015]
[1753345380305,0.03,185.05,185.04,7.68690015]
[1753345382534,0.03,185.05,185.04,40.31156076]
[1753345382835,0.03,185.09,185.08,42.78468397]
[1753345383030,0.03,185.09,185.08,50.47158412]
[1753345383226,0.03,185.09,185.08,51.15158412]
[1753345383837,0.03,185.13,185.09,22.18746099]
[1753345384034,0.03,185.13,185.09,70.83463884]
[1753345384533,0.03,185.13,185.09,48.10690015]
[1753345384916,0.03,185.13,185.09,7.68690015]
[1753345385107,0.74,185.13,185.09,7.68690015]
[1753345386328,6.1419007,185.13,185.06,45.12343275]
[1753345386634,0.03,185.13,185.09,8.36690015]
[1753345387321,0.03,185.13,185.09,25.69186182]
[1753345387739,0.03,185.13,185.12,42.78468397]
[1753345387910,0.03,185.13,185.12,58.15848427]
[1753345388116,0.03,185.14,185.13,16.78468397]
[1753345388315,0.03,185.14,185.13,38.7802549]
[1753345388516,0.03,185.14,185.13,38.24009394]
[1753345391351,7.224,185.21,185.17,16.78468397]
[1753345391352,0.2,185.21,185.17,16.78468397]
[1753345391519,0.2,185.21,185.2,7.68690015]
[1753345392333,0.2,185.21,185.17,26.68]
[1753345392334,0.91,185.21,185.17,26.0]
[1753345392530,6.30927649,185.21,185.14,7.68690015]
[1753345392735,0.71,185.2,185.14,7.68690015]
[1753345393136,0.71,185.2,185.16,7.68690015]
[1753345393341,5.59927649,185.21,185.17,7.68690015]
[1753345393545,0.67,185.19,185.16,7.68690015]
[1753345394040,6.07002239,185.19,185.16,7.68690015]
[1753345394415,0.67,185.18,185.16,7.68690015]
[1753345394620,0.67,185.18,185.12,16.78468397]
[1753345394831,5.40002239,185.19,185.16,7.68690015]
[1753345395036,6.07002239,185.19,185.16,7.68690015]
[1753345395341,0.67,185.18,185.16,7.68690015]
[1753345395751,0.67,185.17,185.12,0.68]
[1753345395920,0.67,185.16,185.14,7.68690015]
[1753345396841,11.8638449,185.18,185.14,7.68690015]
[1753345397018,11.8638449,185.18,185.15,7.68690015]
[1753345397223,12.5338449,185.18,185.15,7.68690015]
[1753345397426,5.59932947,185.21,185.17,7.68690015]
[1753345397738,0.2,185.21,185.2,7.68690015]
[1753345398719,5.59927649,185.21,185.2,7.68690015]
[1753345399157,0.2,185.21,185.2,7.68690015]
[1753345399943,0.2,185.21,185.2,0.68]
[1753345400339,5.59928671,185.21,185.16,0.68]
[1753345400550,0.67,185.2,185.11,16.78468397]
[1753345400846,0.67,185.2,185.11,17.46468397]
[1753345401037,5.59928671,185.21,185.13,16.78468397]
[1753345401345,5.59928671,185.21,185.14,0.68]
[1753345401547,5.59928671,185.21,185.14,26.68]
[1753345401732,0.2,185.21,185.15,26.68]
[1753345401941,0.2,185.21,185.17,5.40044283]
[1753345402341,0.2,185.21,185.18,0.68]
[1753345402654,0.2,185.21,185.19,0.68]
[1753345403265,0.2,185.21,185.17,26.0]
[1753345403640,0.2,185.21,185.17,26.68]
[1753345403844,6.26932486,185.21,185.17,26.0]
[1753345404652,5.59932486,185.21,185.18,0.68]
[1753345405134,5.59932486,185.21,185.17,26.0]
[1753345405850,6.26932486,185.21,185.17,26.0]
[1753345406041,0.67,185.2,185.17,26.0]
[1753345406360,5.59932486,185.21,185.17,26.0]
[1753345406552,0.2,185.21,185.17,26.68]
[1753345407151,6.26932217,185.21,185.15,0.68]
[1753345407331,6.26932217,185.21,185.15,6.08097164]
[1753345407752,5.59932217,185.21,185.16,0.68]
[1753345407955,6.26932217,185.21,185.16,0.68]
[1753345408134,0.87,185.21,185.16,0.68]
[1753345408453,0.2,185.21,185.17,0.68]
[1753345408852,5.59930634,185.21,185.14,170.68468397]
[1753345409150,0.67,185.2,185.14,171.36468397]
[1753345409565,0.67,185.2,185.14,153.9]
[1753345409745,8.2688,185.19,185.14,0.06]
[1753345409937,6.0701512,185.18,185.14,0.06]
[1753345410435,0.67,185.17,185.14,0.06]
[1753345410637,0.67,185.16,185.14,0.06]
[1753345411143,0.67,185.15,185.14,0.06]
[1753345411946,8.88788414,185.15,185.14,0.06]
[1753345413453,2.81685795,185.15,185.14,0.06]
[1753345414458,8.21788414,185.15,185.14,0.06]
[1753345414659,8.88788414,185.15,185.14,0.06]
[1753345416540,2.81685795,185.15,185.14,0.06]
[1753345416740,2.81685795,185.15,185.14,0.74]
[1753345418152,2.81685795,185.15,185.14,22.92600189]
[1753345418464,2.81594297,185.19,185.15,16.78468397]
[1753345418671,2.81594297,185.19,185.18,42.78468397]
[1753345418837,0.2,185.21,185.19,16.78468397]
[1753345419037,0.2,185.21,185.2,56.40468397]
[1753345419268,0.2,185.21,185.18,26.0]
[1753345419559,6.26935275,185.21,185.16,39.62]
[1753345419748,6.26935275,185.21,185.16,40.3]
[1753345420147,0.67,185.2,185.16,39.62]
[1753345420339,5.59935275,185.21,185.16,0.68]
[1753345420538,5.59935275,185.21,185.14,71.08123942]
[1753345420766,0.67,185.2,185.14,71.76123942]
[1753345421343,6.06973775,185.2,185.14,71.76123942]
[1753345422153,5.39973775,185.2,185.14,71.76123942]
[1753345423666,5.39973775,185.2,185.15,6.10095171]
[1753345423865,5.59927932,185.21,185.16,0.7]
[1753345424066,6.27927932,185.21,185.16,0.7]
[1753345428683,5.59927932,185.21,185.17,0.7]
[1753345428977,6.27927932,185.21,185.17,0.7]
[1753345429475,0.68,185.2,185.15,6.10095359]
[1753345429774,0.68,185.2,185.16,0.7]
[1753345430273,0.68,185.2,185.16,6.10073397]
[1753345430669,5.59927932,185.21,185.16,6.10073397]
[1753345431071,6.27927932,185.21,185.16,6.10073397]
[1753345431582,0.2,185.21,185.17,0.7]
[1753345431957,0.2,185.21,185.18,0.7]
[1753345432184,0.2,185.21,185.19,0.7]
[1753345433253,0.2,185.21,185.2,6.09956803]
[1753345433986,0.2,185.21,185.2,8.78013863]
[1753345434775,0.2,185.21,185.2,25.5648226]
[1753345434973,0.2,185.21,185.2,51.5648226]
[1753345438288,0.2,185.21,185.2,91.1448226]
[1753345439866,0.2,185.21,185.2,51.5648226]
[1753345440178,0.2,185.21,185.2,91.1448226]
[1753345440579,0.2,185.21,185.17,0.7]
[1753345440764,0.2,185.21,185.19,39.58]
[1753345442080,0.2,185.21,185.18,0.7]
[1753345442380,0.2,185.21,185.18,39.58]
[1753345442961,0.68,185.2,185.16,8.13582717]
[1753345443285,0.68,185.2,185.16,2.73509268]
[1753345443458,0.68,185.19,185.15,26.0]
[1753345443660,0.68,185.19,185.14,0.06]
[1753345443661,26.0,185.17,185.14,0.06]
[1753345443860,26.0,185.17,185.1,0.06]
[1753345443861,0.68,185.16,185.1,0.06]
[1753345444281,6.2155,185.14,185.1,0.06]
[1753345444478,32.2155,185.14,185.1,0.06]
[1753345444681,0.68,185.13,185.1,0.06]
[1753345444883,27.5644,185.11,185.1,0.06]
[1753345445072,28.2444,185.11,185.1,0.06]
[1753345445273,2.2444,185.11,185.1,0.06]
[1753345446171,7.64659329,185.11,185.1,0.06]
[1753345447667,2.2444,185.11,185.1,0.06]
[1753345448672,7.64659329,185.11,185.1,0.06]
[1753345449575,47.22659329,185.11,185.1,0.06]
[1753345452581,7.64659329,185.11,185.1,0.06]
[1753345452877,47.22659329,185.11,185.1,0.06]
[1753345455185,47.20659329,185.11,185.1,0.06]
[1753345455775,50.02413072,185.11,185.1,0.06]
[1753345462993,50.02413072,185.11,185.06,0.06]
[1753345462994,80.31429791,185.11,185.06,0.06]
[1753345463182,79.63429791,185.11,185.06,0.06]
[1753345463388,0.65,185.1,185.06,0.06]
[1753345463586,39.56,185.09,185.06,0.06]
[1753345463800,0.65,185.08,185.06,0.06]
[1753345463982,39.56,185.07,185.06,0.06]
[1753345464394,40.21,185.07,185.06,0.06]
[1753345464584,45.61336089,185.07,185.06,0.06]
[1753345464978,2.81753743,185.11,185.06,0.75]
[1753345465285,39.56,185.1,185.07,0.69]
[1753345465504,39.56,185.1,185.08,0.69]
[1753345465705,0.65,185.09,185.06,0.06]
[1753345465902,40.21,185.08,185.06,0.06]
[1753345466601,5.40336089,185.07,185.06,0.06]
[1753345466907,6.05336089,185.07,185.06,0.06]
[1753345467081,5.40336089,185.07,185.06,0.06]
[1753345467287,44.96314795,185.08,185.06,0.06]
[1753345467686,39.56,185.08,185.06,0.75]
[1753345467901,39.56,185.08,185.07,0.69]
[1753345468607,44.94258264,185.1,185.07,0.69]
[1753345469191,45.59258264,185.1,185.06,0.06]
[1753345469916,44.94258264,185.1,185.06,0.75]
[1753345470814,2.81753743,185.11,185.07,0.69]
[1753345471023,2.81753743,185.11,185.08,5.40306894]
[1753345471194,2.81753743,185.11,185.09,0.69]
[1753345471496,2.81753743,185.11,185.1,0.69]
[1753345471816,39.54,185.16,185.1,0.69]
[1753345472127,2.81644057,185.14,185.1,0.69]
[1753345472622,2.81644057,185.14,185.11,0.69]
[1753345472915,2.81644057,185.14,185.09,0.69]
[1753345473106,2.81644057,185.14,185.1,0.69]
[1753345473511,39.54,185.13,185.06,88.26]
[1753345473822,40.19,185.13,185.07,0.69]
[1753345474025,39.54,185.13,185.07,0.69]
[1753345475020,39.54,185.13,185.08,5.40306894]
[1753345475313,39.54,185.13,185.09,0.69]
[1753345475511,2.81644057,185.14,185.09,0.69]
[1753345475717,2.81644057,185.14,185.1,0.69]
[1753345476323,2.81644057,185.14,185.11,0.69]
[1753345476496,2.81644057,185.14,185.08,31.40306894]
[1753345476691,6.0496264,185.2,185.12,0.69]
[1753345477030,2.81620194,185.16,185.13,5.40160967]
[1753345477215,39.52,185.19,185.14,0.69]
[1753345477527,2.81610104,185.17,185.15,0.69]
[1753345479319,2.81610104,185.17,185.1,0.54024851]
[1753345479622,0.65,185.16,185.1,0.69]
[1753345480814,44.90102619,185.15,185.09,5.40273975]
[1753345481434,0.65,185.14,185.08,0.75]
[1753345482319,0.65,185.14,185.08,0.06]
[1753345482698,5.40160967,185.13,185.08,0.06]
[1753345483101,6.12160967,185.13,185.08,0.74]
[1753345483896,0.72,185.12,185.08,0.74]
[1753345484109,0.72,185.12,185.08,0.06]
[1753345484303,0.72,185.11,185.08,0.06]
[1753345484513,40.22,185.11,185.08,0.06]
[1753345484827,0.72,185.1,185.08,0.06]
[1753345485218,0.72,185.09,185.08,0.06]
[1753345487325,39.5,185.1,185.08,0.06]
[1753345487520,39.5,185.1,185.08,0.74]
[1753345487727,2.2977,185.13,185.08,0.74]
[1753345487728,0.72,185.13,185.08,0.74]
[1753345487915,39.48,185.14,185.09,6.08256152]
[1753345488112,0.72,185.13,185.08,0.06]
[1753345490036,35.6913391,185.12,185.08,0.06]
[1753345490218,0.72,185.11,185.08,0.06]
[1753345490429,39.48,185.1,185.08,0.06]
[1753345490742,0.72,185.09,185.08,0.06]
[1753345492142,6.12277702,185.09,185.08,0.06]
[1753345494050,5.40277702,185.09,185.08,0.06]
[1753345494544,44.88256249,185.1,185.08,0.06]
[1753345494745,45.60256249,185.1,185.08,0.06]
[1753345494938,0.72,185.12,185.08,0.06]
[1753345495250,13.50295167,185.15,185.08,0.06]
[1753345495251,0.72,185.1,185.08,0.06]
[1753345496018,5.40277702,185.09,185.08,0.06]
[1753345496219,6.12277702,185.09,185.08,0.06]
[1753345496838,45.60277702,185.09,185.08,0.06]
[1753345497042,40.2,185.09,185.08,0.06]
[1753345497230,39.48,185.09,185.08,0.06]
[1753345497846,42.29770467,185.09,185.08,0.06]
[1753345498854,2.81770467,185.09,185.08,0.06]
[1753345499326,2.81770467,185.09,185.08,0.74]
[1753345500447,39.48,185.11,185.08,6.14306894]
[1753345500753,2.81700771,185.12,185.09,0.68]
[1753345500950,0.03,185.1,185.09,0.68]
[1753345501247,0.03,185.1,185.08,26.06]
[1753345501490,0.03,185.1,185.08,0.06]
[1753345501635,0.72,185.09,185.08,0.06]
[1753345502239,0.03,185.1,185.08,0.06]
[1753345502739,0.72,185.09,185.08,0.06]
[1753345503124,5.43259917,185.1,185.08,0.06]
[1753345503517,6.15259917,185.1,185.08,0.06]
[1753345503723,0.03,185.1,185.08,0.74]
[1753345504134,0.03,185.1,185.09,0.68]
[1753345504519,0.03,185.1,185.09,6.08277702]
[1753345504832,0.03,185.1,185.09,22.86746099]
[1753345505644,0.03,185.1,185.08,31.46305725]
[1753345505829,0.03,185.1,185.08,6.14305725]
[1753345506235,0.03,185.1,185.09,0.68]
[1753345506662,0.03,185.1,185.09,23.40773869]
[1753345506840,39.44,185.2,185.13,26.0]
[1753345507161,2.81621142,185.16,185.14,0.68]
[1753345507329,39.44,185.2,185.15,0.68]
[1753345507529,2.81599416,185.19,185.15,0.68]
[1753345507751,2.81599416,185.19,185.12,26.0]
[1753345507952,2.81599416,185.19,185.16,0.68]
[1753345508535,2.81599416,185.19,185.17,0.68]
[1753345508852,2.81599416,185.19,185.18,0.68]
[1753345509858,2.81599416,185.19,185.15,6.08075853]
[1753345510063,2.81599416,185.19,185.16,0.68]
[1753345510238,2.81599416,185.19,185.17,0.68]
[1753345511461,2.81599416,185.19,185.17,6.08042124]
[1753345511662,2.81599416,185.19,185.18,0.68]
[1753345512231,0.2,185.21,185.18,0.68]
[1753345512548,0.2,185.21,185.2,48.184252]
[1753345512853,0.2,185.21,185.2,48.864252]
[1753345513233,0.2,185.21,185.2,51.58954703]
[1753345514835,0.2,185.21,185.2,91.00954703]
[1753345518837,0.2,185.21,185.2,51.58954703]
[1753345519038,0.2,185.21,185.2,90.98954703]
[1753345524770,0.2,185.21,185.2,90.30954703]
[1753345524971,0.92,185.21,185.17,22.1851268]
[1753345525157,0.2,185.21,185.2,26.0]
[1753345527171,0.92,185.21,185.16,8.15561171]
[1753345527372,0.72,185.2,185.13,0.66]
[1753345527571,0.72,185.2,185.13,40.04]
[1753345527744,0.72,185.2,185.16,26.0]
[1753345528255,0.72,185.2,185.13,39.38]
[1753345528660,0.72,185.2,185.11,26.0]
[1753345528661,1.6007,185.19,185.11,39.38]
[1753345528972,0.72,185.18,185.11,39.38]
[1753345529275,1.6007,185.19,185.13,16.78468397]
[1753345529458,0.2,185.21,185.14,40.58013179]
[1753345529768,0.2,185.21,185.15,17.44468397]
[1753345529974,0.2,185.21,185.16,0.54007344]
[1753345530173,0.2,185.21,185.17,0.66]
[1753345530380,0.2,185.21,185.18,0.66]
[1753345530880,0.92,185.21,185.15,17.44468397]
[1753345531089,0.92,185.21,185.16,0.66]
[1753345531463,0.92,185.21,185.17,5.40044283]
[1753345531861,0.72,185.2,185.14,44.78127634]
[1753345532170,0.72,185.2,185.14,39.38]
[1753345532772,0.72,185.2,185.13,8.70334142]
[1753345532963,0.72,185.2,185.1,88.92]
[1753345533271,0.72,185.2,185.11,65.36]
[1753345533481,5.3998596,185.19,185.11,65.36]
[1753345533674,0.72,185.18,185.11,39.36]
[1753345534088,0.72,185.18,185.11,44.7621746]
[1753345534477,0.72,185.18,185.11,39.36]
[1753345534879,0.72,185.18,185.12,0.66]
[1753345535183,5.3998596,185.19,185.12,0.66]
[1753345535881,5.3998596,185.19,185.12,6.06163779]
[1753345536071,5.3998596,185.19,185.13,0.66]
[1753345536383,0.72,185.2,185.14,39.36]
[1753345536769,5.59934192,185.21,185.15,0.66]
[1753345537686,6.31934192,185.21,185.15,0.66]
[1753345537881,0.72,185.2,185.14,39.36]
[1753345538584,0.72,185.2,185.14,44.7612829]
[1753345538761,2.81615144,185.19,185.14,45.4212829]
[1753345538967,2.81615144,185.19,185.14,44.7612829]
[1753345539286,2.81615144,185.19,185.15,0.66]
[1753345539669,2.81615144,185.19,185.14,44.7612829]
[1753345539868,2.81615144,185.19,185.16,0.66]
[1753345540892,2.81615144,185.19,185.17,0.66]
[1753345541081,2.81615144,185.19,185.18,0.66]
[1753345541392,0.2,185.21,185.18,0.66]
[1753345541597,0.2,185.21,185.19,0.66]
[1753345541785,0.2,185.21,185.2,0.66]
[1753345542091,0.92,185.21,185.18,39.36]
[1753345542298,0.2,185.21,185.18,39.36]
[1753345543490,0.71,185.2,185.15,39.34]
[1753345543688,0.71,185.19,185.15,39.34]
[1753345543895,0.71,185.19,185.15,44.74097498]
[1753345544191,0.71,185.19,185.15,45.42097498]
[1753345545475,5.39960097,185.2,185.15,45.42097498]
[1753345545684,5.39960097,185.2,185.15,39.34]
[1753345545874,0.71,185.19,185.13,26.68]
[1753345546071,0.71,185.19,185.13,65.34]
[1753345546278,0.71,185.19,185.14,0.68]
[1753345546509,0.71,185.19,185.15,0.68]
[1753345546674,5.39960097,185.2,185.15,0.68]
[1753345546873,6.10960097,185.2,185.15,0.68]
[1753345547378,0.2,185.21,185.16,0.68]
[1753345547598,0.2,185.21,185.17,0.68]
[1753345547791,0.2,185.21,185.19,26.0]
[1753345547974,0.2,185.21,185.2,0.68]
[1753345548799,0.2,185.21,185.2,6.07956803]
[1753345549794,0.2,185.21,185.2,0.68]
[1753345549988,0.2,185.21,185.19,31.3997814]
[1753345550386,0.2,185.21,185.2,0.68]
[1753345551186,0.2,185.21,185.2,22.864252]
[1753345552881,0.2,185.21,185.2,45.39956803]
[1753345553394,0.2,185.21,185.2,44.71956803]
[1753345553794,0.2,185.21,185.2,62.7242088]
[1753345554189,0.2,185.21,185.2,62.184252]
[1753345555201,0.2,185.21,185.16,39.32]
[1753345555202,0.91,185.21,185.16,39.32]
[1753345555506,6.30930771,185.21,185.16,39.32]
[1753345555695,0.71,185.2,185.16,39.32]
[1753345556988,0.71,185.2,185.16,44.72071962]
[1753345558393,0.71,185.2,185.16,39.32]
[1753345559794,5.59930771,185.21,185.16,39.32]
[1753345560099,0.71,185.19,185.15,26.0]
[1753345560303,6.7372,185.19,185.15,26.0]
[1753345560603,0.71,185.18,185.12,0.68]
[1753345560800,0.71,185.18,185.1,0.06]
[1753345560990,0.71,185.18,185.1,65.36]
[1753345561539,0.71,185.18,185.1,0.06]
[1753345561688,0.71,185.18,185.1,6.14236732]
[1753345562011,5.40044283,185.17,185.1,6.14236732]
[1753345562209,5.40044283,185.17,185.11,26.68]
[1753345562210,0.71,185.17,185.11,26.68]
[1753345562387,0.71,185.17,185.12,0.68]
[1753345562787,5.4001651,185.18,185.12,0.68]
[1753345563005,0.71,185.16,185.12,0.68]
[1753345563213,5.4001651,185.18,185.12,5.40164319]
[1753345563395,6.0272,185.19,185.13,0.68]
[1753345563886,11.42711673,185.19,185.13,0.68]
[1753345564198,0.71,185.18,185.12,22.18632716]
[1753345564597,0.71,185.18,185.11,26.68]
[1753345565187,5.40044283,185.17,185.1,0.06]
[1753345565401,0.71,185.16,185.1,0.06]
[1753345566397,6.6446,185.14,185.1,0.06]
[1753345566723,0.71,185.13,185.1,0.06]
[1753345567223,5.40190146,185.12,185.1,0.06]
[1753345567400,5.40190146,185.12,185.08,0.06]
[1753345567401,26.0,185.09,185.08,0.06]
[1753345567601,32.0144,185.09,185.08,0.06]
[1753345567920,32.7244,185.09,185.08,0.06]
[1753345568921,6.7244,185.09,185.08,0.06]
[1753345569400,12.12717702,185.09,185.08,0.06]
[1753345570218,38.12717702,185.09,185.08,0.06]
[1753345571802,40.94550232,185.09,185.08,0.06]
[1753345573128,57.73018629,185.09,185.08,0.06]
[1753345573625,40.94550232,185.09,185.08,0.06]
[1753345574425,26.0,185.05,185.04,0.06]
[1753345574604,65.3,185.05,185.04,0.06]
[1753345574802,66.0,185.05,185.04,0.06]
[1753345575720,7.5582,185.04,185.02,0.06]
[1753345575923,26.0,185.01,184.98,0.06]
[1753345576223,65.3,185.01,184.98,0.06]
[1753345576433,66.0,185.01,184.98,0.06]
[1753345576622,71.40511323,185.01,184.98,0.06]
[1753345579218,88.1897972,185.01,185.0,1e-08]
[1753345580509,32.10511323,185.01,185.0,1e-08]
[1753345580731,71.40511323,185.01,185.0,1e-08]
[1753345587219,71.40511323,185.01,184.98,1e-08]
[1753345587220,16.78468397,185.0,184.98,1e-08]
[1753345587532,56.06468397,184.99,184.98,1e-08]
[1753345587839,56.76468397,184.99,184.98,1e-08]
[1753345588240,62.17038157,184.99,184.98,1e-08]
[1753345588839,5.4056976,184.99,184.98,1e-08]
[1753345589025,39.28,184.99,184.98,1e-08]
[1753345589334,6.0329,185.01,184.98,0.72000001]
[1753345589335,39.28,185.0,184.98,0.72000001]
[1753345589923,39.28,185.0,184.98,1e-08]
[1753345590129,39.28,185.0,184.99,0.72]
[1753345591944,44.6854054,185.0,184.98,1e-08]
[1753345592144,47.50457554,185.0,184.98,1e-08]
[1753345593029,42.09917014,185.0,184.98,0.72000001]
[1753345593629,42.09917014,185.0,184.99,0.72]
[1753345593832,2.81917014,185.0,184.99,0.72]
[1753345594648,0.03,185.02,184.99,0.72]
[1753345594649,0.03,185.02,184.99,26.72]
[1753345595024,0.03,185.02,184.99,31.40546544]
[1753345595322,0.03,185.02,185.0,0.72]
[1753345595715,0.03,185.02,185.0,6.5477541]
[1753345595913,0.03,185.02,185.01,16.78468397]
[1753345596120,0.03,185.02,185.01,18.04519529]
[1753345596338,0.03,185.1,185.01,18.04519529]
[1753345596339,0.03,185.1,185.05,16.78468397]
[1753345596733,0.03,185.1,185.08,26.0]
[1753345596941,0.03,185.1,185.09,16.78468397]
[1753345597127,0.03,185.1,185.09,22.90746099]
[1753345599533,0.03,185.1,185.09,0.72]
[1753345599723,0.03,185.1,185.07,1.5587]
[1753345599724,0.03,185.1,185.07,26.72]
[1753345599927,0.03,185.1,185.08,0.72]
[1753345600126,0.03,185.1,185.05,0.72]
[1753345600337,0.03,185.1,185.06,17.50468397]
[1753345600643,0.03,185.1,185.07,0.72]
[1753345601053,0.03,185.1,185.08,0.72]
[1753345601558,0.03,185.1,185.09,0.72]
[1753345602035,0.03,185.1,185.06,0.72]
[1753345602435,0.7,185.09,185.03,0.72]
[1753345602630,0.03,185.1,185.03,17.50468397]
[1753345602845,0.03,185.1,185.04,0.72]
[1753345605980,5.43248514,185.1,185.04,0.72]
[1753345606155,5.43248514,185.1,185.04,6.12419524]
[1753345606363,0.03,185.1,185.05,0.67]
[1753345607562,0.03,185.1,185.05,6.07386165]
[1753345607774,0.03,185.1,185.05,5.40386165]
[1753345607949,0.03,185.1,185.08,26.0]
[1753345608471,0.03,185.1,185.09,0.67]
[1753345610965,0.03,185.1,185.09,6.07277702]
[1753345611357,0.03,185.1,185.09,0.67]
[1753345612961,0.03,185.1,185.09,6.07277702]
[1753345615478,0.03,185.1,185.09,22.85746099]
[1753345615681,0.03,185.1,185.09,111.59773869]
[1753345615881,0.03,185.18,185.16,26.0]
[1753345616069,0.03,185.18,185.17,17.32472825]
[1753345616267,0.03,185.18,185.17,17.45468397]
[1753345617062,0.03,185.18,185.17,22.8551268]
[1753345619071,0.2,185.21,185.2,26.0]
[1753345619276,0.2,185.21,185.2,81.96468397]
[1753345619472,0.2,185.21,185.2,82.63468397]
[1753345620394,0.2,185.21,185.2,65.16]
[1753345620580,0.2,185.21,185.2,26.0]
[1753345620781,6.26935853,185.21,185.14,0.67]
[1753345620989,7.1993,185.2,185.13,39.16]
[1753345621364,0.67,185.19,185.09,88.87]
[1753345621623,0.67,185.19,185.11,26.0]
[1753345621774,0.67,185.19,185.13,26.0]
[1753345622084,6.5293,185.2,185.14,17.45468397]
[1753345622456,6.5293,185.2,185.16,16.78468397]
[1753345622780,6.5293,185.2,185.17,0.67]
[1753345623692,12.59889795,185.2,185.14,17.45468397]
[1753345623879,11.92889795,185.2,185.14,17.45468397]
[1753345624690,11.92889795,185.2,185.13,70.56154718]
[1753345624691,0.67,185.19,185.13,65.16]
[1753345626481,0.67,185.19,185.13,70.56156936]
[1753345626694,5.4001512,185.18,185.13,65.16]
[1753345626988,0.67,185.17,185.13,26.0]
[1753345627174,0.67,185.16,185.1,39.81]
[1753345627372,0.67,185.16,185.1,65.14]